bitfinex/quotes_BTCUSD_20241004
["timestamp","ask_amount","ask_price","bid_price","bid_amount"]
[1728043929440,0.001638,61593.0,61592.0,0.95561055]
[1728043929668,0.001638,61593.0,61592.0,0.95172193]
[1728043929895,0.001638,61593.0,61592.0,0.99656986]
[1728043930120,0.001638,61593.0,61592.0,1.01056986]
[1728043930342,0.001638,61593.0,61592.0,1.14134951]
[1728043930600,0.001638,61593.0,61592.0,1.14130119]
[1728043930836,0.001638,61593.0,61592.0,0.98261658]
[1728043931043,0.001638,61593.0,61592.0,0.99661658]
[1728043931285,0.001638,61593.0,61592.0,1.01061658]
[1728043931509,0.001638,61593.0,61592.0,0.95176865]
[1728043933705,0.001638,61593.0,61592.0,0.94973493]
[1728043933941,0.001638,61593.0,61592.0,0.85713493]
[1728043934162,0.001638,61593.0,61592.0,0.95371617]
[1728043934387,0.001638,61593.0,61592.0,0.97896526]
[1728043934611,0.001638,61593.0,61592.0,0.88233725]
[1728043935121,0.001638,61593.0,61592.0,0.96386148]
[1728043935333,0.001638,61593.0,61592.0,0.85713493]
[1728043935553,0.001638,61593.0,61592.0,0.85932413]
[1728043935769,0.001638,61593.0,61592.0,0.84532413]
[1728043935994,0.001638,61593.0,61592.0,0.85932413]
[1728043936469,0.001638,61593.0,61592.0,0.84532413]
[1728043936965,0.001638,61593.0,61592.0,0.85932413]
[1728043937186,0.001638,61593.0,61592.0,0.76524403]
[1728043937458,0.001638,61593.0,61592.0,0.85931159]
[1728043938134,0.001638,61593.0,61592.0,0.77981159]
[1728043939050,0.001638,61593.0,61592.0,0.5829822]
[1728043939254,0.001638,61593.0,61592.0,0.48618246]
[1728043939469,0.001638,61593.0,61592.0,0.55879184]
[1728043939685,0.001638,61593.0,61592.0,0.51799152]
[1728043939918,0.001638,61593.0,61592.0,0.55879184]
[1728043940135,0.001638,61593.0,61592.0,0.51799152]
[1728043940371,0.001638,61593.0,61592.0,0.44538214]
[1728043940799,0.001638,61593.0,61592.0,0.54538214]
[1728043942077,0.001638,61593.0,61592.0,0.57316104]
[1728043942967,0.001638,61593.0,61592.0,0.57263174]
[1728043943386,0.001638,61593.0,61592.0,0.65839695]
[1728043944487,0.177338,61593.0,61592.0,0.49683524]
[1728043944697,0.01712446,61593.0,61592.0,0.3915856]
[1728043946056,0.001638,61593.0,61592.0,0.46069834]
[1728043946263,0.001638,61593.0,61592.0,0.3915856]
[1728043946676,0.01713009,61593.0,61592.0,0.3915856]
[1728043947102,0.001638,61593.0,61592.0,0.3915856]
[1728043947522,0.01713257,61593.0,61592.0,0.43999723]
[1728043947754,0.001638,61593.0,61592.0,0.3915856]
[1728043947966,0.01713337,61593.0,61592.0,0.3915856]
[1728043950633,0.19083337,61593.0,61592.0,0.36496754]
[1728043950857,0.21562576,61593.0,61592.0,0.36496754]
[1728043951528,0.21562576,61593.0,61592.0,0.35096754]
[1728043951966,0.21562576,61593.0,61592.0,0.35996754]
[1728043952171,0.21562576,61593.0,61592.0,0.34596754]
[1728043952379,0.21562576,61593.0,61592.0,0.35496754]
[1728043957036,0.175338,61593.0,61592.0,0.35496754]
[1728043957258,0.19082076,61593.0,61592.0,0.35496754]
[1728043957484,0.21559318,61593.0,61592.0,0.35496754]
[1728043959282,0.04189318,61593.0,61592.0,0.35496754]
[1728043959491,0.01712076,61593.0,61592.0,0.35496754]
[1728043959709,0.001638,61593.0,61592.0,0.35496754]
[1728043961099,0.01714035,61593.0,61592.0,0.35496754]
[1728043961308,0.03264455,61593.0,61592.0,0.35496754]
[1728043961519,0.01714035,61593.0,61592.0,0.35496754]
[1728043961948,0.03264455,61593.0,61592.0,0.37796754]
[1728043962428,0.22607414,61593.0,61592.0,0.35496754]
[1728043962637,0.20124455,61593.0,61592.0,0.35496754]
[1728043962847,0.23420954,61593.0,61592.0,0.35496754]
[1728043963715,0.20124455,61593.0,61592.0,0.35496754]
[1728043963937,0.18574035,61593.0,61592.0,0.35496754]
[1728043964150,0.23421967,61593.0,61592.0,0.35496754]
[1728043967259,0.23425237,61593.0,61592.0,0.35496754]
[1728043967490,0.23425237,61593.0,61592.0,0.35578654]
[1728043969456,0.15685237,61593.0,61592.0,0.35578654]
[1728043969680,0.23385237,61593.0,61592.0,0.35578654]
[1728043970380,0.21835002,61593.0,61592.0,0.35578654]
[1728043970862,0.18536749,61593.0,61592.0,0.35578654]
[1728043971093,0.380675,61593.0,61592.0,0.19342854]
[1728043971304,0.380675,61593.0,61592.0,0.03024183]
[1728043971520,0.39691572,61593.0,61592.0,0.03024183]
[1728043971743,0.39691572,61593.0,61592.0,0.018819]
[1728043971744,0.380675,61593.0,61592.0,0.018819]
[1728043972375,0.56930413,61593.0,61592.0,0.018819]
[1728043975332,0.162366,61589.0,61588.0,0.001636]
[1728043975550,0.57687613,61589.0,61588.0,0.001636]
[1728043976464,0.57687613,61589.0,61588.0,0.005636]
[1728043976683,0.57687613,61589.0,61588.0,0.009636]
[1728043976888,0.57687613,61589.0,61588.0,0.005636]
[1728043977343,0.57887613,61589.0,61588.0,0.006636]
[1728043977813,0.57687613,61589.0,61588.0,0.001636]
[1728043978029,0.57687613,61589.0,61575.0,0.0009905]
[1728043978030,0.3341,61576.0,61575.0,0.0009905]
[1728043978247,0.57121013,61576.0,61575.0,0.01029116]
[1728043978476,0.40881013,61576.0,61569.0,0.162419]
[1728043978686,0.162411,61573.0,61570.0,0.171731]
[1728043978900,0.048481,61572.0,61570.0,0.009315]
[1728043979111,0.048481,61571.0,61570.0,0.162415]
[1728043979323,0.04034558,61571.0,61570.0,0.162415]
[1728043979807,0.04034558,61571.0,61570.0,0.168415]
[1728043980024,0.5004436,61571.0,61570.0,0.014]
[1728043980256,0.40262845,61571.0,61570.0,0.014]
[1728043980709,0.40262845,61571.0,61570.0,0.006]
[1728043980927,0.40362845,61571.0,61570.0,0.015]
[1728043981163,0.40362845,61571.0,61570.0,0.009]
[1728043981390,0.40462845,61571.0,61570.0,0.018]
[1728043981654,0.3480525,61571.0,61570.0,0.018]
[1728043981867,0.38832807,61571.0,61570.0,0.018]
[1728043982081,0.4137944,61571.0,61570.0,0.018]
[1728043982307,0.48175325,61571.0,61570.0,0.018]
[1728043983373,0.60242353,61571.0,61570.0,0.018]
[1728043984776,0.61859899,61571.0,61570.0,0.018]
[1728043985225,0.60242353,61571.0,61570.0,0.018]
[1728043986262,0.70442353,61571.0,61570.0,0.018]
[1728043986932,0.6789572,61571.0,61570.0,0.018]
[1728043987163,0.82565374,61571.0,61570.0,0.009]
[1728043987437,0.162445,61559.0,61558.0,0.002626]
[1728043987680,0.52317413,61559.0,61558.0,0.002626]
[1728043987910,0.52317413,61559.0,61558.0,0.001636]
[1728043987911,0.54791001,61559.0,61558.0,0.001636]
[1728043988122,0.56336993,61559.0,61558.0,0.001636]
[1728043988782,0.3747408,61559.0,61558.0,0.001636]
[1728043989429,0.35000492,61559.0,61558.0,0.001636]
[1728043989852,0.35000492,61559.0,61558.0,0.002636]
[1728043990079,0.17790492,61559.0,61558.0,0.002636]
[1728043990288,0.01545992,61559.0,61558.0,0.002636]
[1728043990502,0.17790492,61559.0,61558.0,0.002636]
[1728043992730,0.01545992,61559.0,61558.0,0.165084]
[1728043993171,0.01545992,61559.0,61558.0,0.002636]
[1728043993172,0.09695992,61559.0,61558.0,0.002636]
[1728043993399,0.40724634,61559.0,61558.0,0.002636]
[1728043993620,0.40724634,61559.0,61558.0,0.001636]
[1728043993621,0.41538765,61559.0,61558.0,0.001636]
[1728043994071,0.41538765,61559.0,61558.0,0.008636]
[1728043994291,0.41538765,61559.0,61558.0,0.005636]
[1728043994505,0.54258082,61559.0,61558.0,0.005636]
[1728043995401,0.54258082,61559.0,61558.0,0.001636]
[1728043996077,0.41538765,61559.0,61558.0,0.001636]
[1728043997853,0.389919,61559.0,61558.0,0.001636]
[1728044000626,0.341645,61559.0,61558.0,0.001636]
[1728044000811,0.38139622,61559.0,61558.0,0.001636]
[1728044001130,0.4315687,61559.0,61558.0,0.001636]
[1728044001331,0.41539775,61559.0,61558.0,0.001636]
[1728044003651,0.38255418,61559.0,61558.0,0.001636]
[1728044003857,0.36711534,61559.0,61558.0,0.001636]
[1728044004325,0.4154298,61559.0,61558.0,0.001636]
[1728044004532,0.38995946,61559.0,61558.0,0.001636]
[1728044007229,0.36711507,61559.0,61558.0,0.001636]
[1728044007438,0.41551115,61559.0,61558.0,0.001636]
[1728044008219,0.39004108,61559.0,61558.0,0.001636]
[1728044010396,0.6453724,61559.0,61558.0,0.001636]
[1728044010845,0.59697632,61559.0,61558.0,0.001636]
[1728044011057,0.64541963,61559.0,61558.0,0.001636]
[1728044011220,0.49008831,61559.0,61558.0,0.001636]
[1728044011646,0.04844331,61559.0,61558.0,0.001636]
[1728044011910,0.21088831,61559.0,61558.0,0.001636]
[1728044012840,0.04844331,61559.0,61558.0,0.164084]
[1728044013261,0.04844331,61559.0,61558.0,0.19892814]
[1728044013679,0.162438,61562.0,61558.0,0.03647985]
[1728044013880,0.24343338,61561.0,61559.0,0.162445]
[1728044014079,0.24343338,61561.0,61558.0,0.004636]
[1728044014080,0.324865,61564.0,61558.0,0.004636]
[1728044014293,0.001,61559.0,61558.0,0.171082]
[1728044014497,0.04844259,61559.0,61558.0,0.03446604]
[1728044014697,0.04944259,61559.0,61558.0,0.04146604]
[1728044014930,0.04944259,61559.0,61558.0,0.20691404]
[1728044015134,0.04844259,61559.0,61558.0,0.19991018]
[1728044015331,0.04844259,61559.0,61558.0,0.19991399]
[1728044015585,0.04944259,61559.0,61558.0,0.175084]
[1728044016203,0.04944259,61559.0,61558.0,0.20492753]
[1728044016411,0.07491123,61559.0,61558.0,0.172084]
[1728044016615,0.07591123,61559.0,61558.0,0.29253013]
[1728044016830,0.07491123,61559.0,61558.0,0.44871684]
[1728044017697,0.07591123,61559.0,61558.0,0.45671684]
[1728044017903,0.05044259,61559.0,61558.0,0.45671684]
[1728044018344,0.04230216,61559.0,61558.0,0.45671684]
[1728044019547,0.04230216,61559.0,61558.0,0.47724331]
[1728044020480,0.002,61559.0,61558.0,0.45671501]
[1728044020726,0.05040924,61559.0,61558.0,0.42387071]
[1728044020955,0.05040924,61559.0,61558.0,0.45671114]
[1728044021176,0.04226392,61559.0,61558.0,0.47723641]
[1728044021620,0.05040372,61559.0,61558.0,0.47723641]
[1728044021887,0.04226392,61559.0,61558.0,0.47723641]
[1728044022104,0.05040372,61559.0,61558.0,0.47723641]
[1728044022331,0.04226392,61559.0,61558.0,0.47723641]
[1728044023012,0.04226392,61559.0,61558.0,0.36379598]
[1728044027287,0.04226392,61559.0,61558.0,0.36374816]
[1728044027490,0.04226392,61559.0,61558.0,0.34327071]
[1728044027494,0.05041698,61559.0,61558.0,0.34327071]
[1728044028400,0.04227699,61559.0,61558.0,0.34327071]
[1728044030833,0.05041698,61559.0,61558.0,0.34327071]
[1728044031335,0.002,61559.0,61558.0,0.34327071]
[1728044031785,0.05042007,61559.0,61558.0,0.34327071]
[1728044032015,0.04228002,61559.0,61558.0,0.34327071]
[1728044032254,0.05042007,61559.0,61558.0,0.34327071]
[1728044032473,0.04228002,61559.0,61558.0,0.34327071]
[1728044034239,0.002,61559.0,61558.0,0.34327071]
[1728044034457,0.05042164,61559.0,61558.0,0.34327071]
[1728044034951,0.0422815,61559.0,61558.0,0.34327071]
[1728044036519,0.0422815,61559.0,61558.0,0.36375859]
[1728044036740,0.0422815,61559.0,61558.0,0.34327071]
[1728044037008,0.0422815,61559.0,61558.0,0.36375924]
[1728044037235,0.0422815,61559.0,61558.0,0.34327071]
[1728044037496,0.0422815,61559.0,61558.0,0.017636]
[1728044037497,0.05149448,61559.0,61558.0,0.017636]
[1728044037713,0.05149448,61559.0,61558.0,0.180084]
[1728044037931,0.05149448,61559.0,61558.0,0.18946569]
[1728044038371,0.05963462,61559.0,61558.0,0.18946569]
[1728044039289,0.05042164,61559.0,61558.0,0.18946569]
[1728044039510,0.0422815,61559.0,61558.0,0.18946569]
[1728044041113,0.0422815,61559.0,61558.0,0.20997572]
[1728044041114,0.04231506,61559.0,61558.0,0.20997572]
[1728044041348,0.05045535,61559.0,61558.0,0.20997572]
[1728044041565,0.05045482,61559.0,61558.0,0.20997572]
[1728044041809,0.002,61559.0,61558.0,0.18946569]
[1728044042033,0.05043677,61559.0,61558.0,0.21002882]
[1728044042751,0.06669962,61559.0,61558.0,0.21002882]
[1728044043445,0.06669962,61559.0,61558.0,0.04758082]
[1728044043682,0.06670505,61559.0,61558.0,0.04759564]
[1728044043920,0.22915005,61559.0,61558.0,0.04759564]
[1728044044125,0.05043715,61559.0,61558.0,0.04759564]
[1728044044355,0.05043715,61559.0,61558.0,0.21004364]
[1728044045215,0.0504768,61559.0,61558.0,0.21004364]
[1728044045422,0.0504768,61559.0,61558.0,0.20066195]
[1728044045638,0.0504768,61559.0,61558.0,0.21005009]
[1728044046293,0.07594388,61559.0,61558.0,0.21005009]
[1728044046761,0.07594388,61559.0,61558.0,0.19369509]
[1728044047901,0.0504768,61559.0,61558.0,0.19369509]
[1728044049480,0.0504768,61559.0,61558.0,0.19451409]
[1728044050130,0.0504768,61559.0,61558.0,0.17393614]
[1728044050492,0.0504768,61559.0,61558.0,0.03203645]
[1728044050745,0.33689105,61559.0,61558.0,0.03203645]
[1728044050962,0.33689105,61559.0,61558.0,0.0021]
[1728044051425,0.51139105,61559.0,61558.0,0.0021]
[1728044053241,0.51039105,61559.0,61558.0,0.0021]
[1728044053665,0.57541259,61559.0,61558.0,0.0021]
[1728044053908,0.57541259,61559.0,61558.0,0.000819]
[1728044054118,0.57441259,61559.0,61558.0,0.000819]
[1728044054349,0.57441259,61559.0,61558.0,0.001819]
[1728044054350,0.58141259,61559.0,61558.0,0.001819]
[1728044054990,0.60688341,61559.0,61558.0,0.001819]
[1728044055230,0.78715618,61559.0,61558.0,0.001819]
[1728044055453,0.434556,61555.0,61554.0,0.001]
[1728044055691,0.67202359,61555.0,61554.0,0.001]
[1728044056165,0.74515391,61555.0,61554.0,0.001]
[1728044056627,0.67202359,61555.0,61554.0,0.001]
[1728044057261,0.74815391,61555.0,61554.0,0.001]
[1728044057709,0.67702359,61555.0,61554.0,0.001]
[1728044059095,0.4860328,61555.0,61554.0,0.001]
[1728044059321,0.67502359,61555.0,61554.0,0.001]
[1728044059995,0.62654679,61555.0,61554.0,0.001]
[1728044060472,0.67496868,61555.0,61554.0,0.001]
[1728044061427,0.162503,61537.0,61536.0,0.0009948]
[1728044061659,0.56557274,61537.0,61536.0,0.0009948]
[1728044061875,0.57371568,61537.0,61536.0,0.00553031]
[1728044062100,0.162511,61534.0,61530.0,0.00164]
[1728044062360,0.21093289,61534.0,61530.0,0.00164]
[1728044064897,0.21193289,61534.0,61530.0,0.00164]
[1728044065111,0.23741161,61534.0,61530.0,0.00164]
[1728044065339,0.23641161,61534.0,61530.0,0.00164]
[1728044066435,0.23627017,61534.0,61530.0,0.00164]
[1728044067854,0.21079145,61534.0,61530.0,0.00164]
[1728044068426,0.21079145,61534.0,61530.0,0.164161]
[1728044068871,0.21079145,61534.0,61533.0,0.0170282]
[1728044069760,0.21077559,61534.0,61533.0,0.0170282]
[1728044070695,0.04826459,61534.0,61533.0,0.0170282]
[1728044070919,0.20263134,61534.0,61533.0,0.0170282]
[1728044071111,0.04012034,61534.0,61533.0,0.0170282]
[1728044071601,0.20263134,61534.0,61533.0,0.0170282]
[1728044071833,0.21077557,61534.0,61533.0,0.0170282]
[1728044072267,0.22810923,61534.0,61533.0,0.0170282]
[1728044074265,0.20263134,61534.0,61533.0,0.0170282]
[1728044074965,0.22810927,61534.0,61533.0,0.0170282]
[1728044075404,0.23625329,61534.0,61533.0,0.0170282]
[1728044076356,0.22815358,61534.0,61533.0,0.0170282]
[1728044076592,0.2362976,61534.0,61533.0,0.0170282]
[1728044077938,0.21081967,61534.0,61533.0,0.0170282]
[1728044078833,0.04830867,61534.0,61533.0,0.0170282]
[1728044080301,0.21081967,61534.0,61533.0,0.0170282]
[1728044081200,0.04830867,61534.0,61533.0,0.0170282]
[1728044082290,0.06450628,61534.0,61533.0,0.0170282]
[1728044084259,0.08998365,61534.0,61533.0,0.1795422]
[1728044084443,0.07378604,61534.0,61533.0,0.1795422]
[1728044086043,0.02547737,61534.0,61533.0,0.1825422]
[1728044086309,0.05026311,61534.0,61533.0,0.1825422]
[1728044086540,0.07389809,61534.0,61533.0,0.1825422]
[1728044087001,0.07389809,61534.0,61533.0,0.1855422]
[1728044087768,0.07389809,61534.0,61533.0,0.47279621]
[1728044088007,0.04842072,61534.0,61533.0,0.34872891]
[1728044088258,0.04842072,61534.0,61533.0,0.36909296]
[1728044088504,0.04027683,61534.0,61533.0,0.36909296]
[1728044089430,0.04842072,61534.0,61533.0,0.36909296]
[1728044089644,0.04027683,61534.0,61533.0,0.36909296]
[1728044089867,0.02440544,61536.0,61533.0,0.36909296]
[1728044089868,0.40592638,61541.0,61538.0,0.162501]
[1728044090297,0.40592638,61541.0,61539.0,0.0089156]
[1728044090506,0.04846637,61540.0,61539.0,0.0089156]
[1728044090715,0.21096137,61540.0,61539.0,0.0089156]
[1728044091210,0.21096137,61540.0,61537.0,0.162503]
[1728044091445,0.21096137,61540.0,61533.0,0.17362284]
[1728044091446,0.162506,61536.0,61533.0,0.17362284]
[1728044091673,0.04846637,61535.0,61533.0,0.17362284]
[1728044091882,0.325002,61538.0,61533.0,0.17362284]
[1728044091883,0.04846637,61534.0,61533.0,0.17062284]
[1728044092818,0.04846637,61534.0,61533.0,0.19097788]
[1728044093474,0.04846637,61534.0,61533.0,0.17062284]
[1728044093713,0.04846637,61534.0,61533.0,0.17262284]
[1728044093963,0.04846637,61534.0,61533.0,0.17362284]
[1728044094176,0.04846637,61534.0,61533.0,0.17062284]
[1728044094397,0.0739431,61534.0,61533.0,0.17362284]
[1728044094609,0.0739431,61534.0,61533.0,0.17662284]
[1728044096914,0.0739431,61534.0,61533.0,0.19699046]
[1728044097386,0.0739431,61534.0,61533.0,0.17662284]
[1728044098078,0.04846637,61534.0,61533.0,0.17662284]
[1728044098830,0.04846637,61534.0,61533.0,0.19699494]
[1728044099288,0.06473823,61534.0,61533.0,0.19699494]
[1728044099509,0.24343338,61539.0,61538.0,0.162501]
[1728044100228,0.162488,61543.0,61539.0,0.162497]
[1728044100473,0.02481466,61542.0,61537.0,0.0796]
[1728044100717,0.04846726,61541.0,61540.0,0.162495]
[1728044101188,0.07394228,61541.0,61539.0,0.162498]
[1728044101421,0.02547502,61541.0,61540.0,0.162495]
[1728044101673,0.0739072,61541.0,61540.0,0.162495]
[1728044101911,0.0739072,61541.0,61540.0,0.1796443]
[1728044102383,0.05743218,61541.0,61540.0,0.1796443]
[1728044103599,0.05343218,61541.0,61540.0,0.1796443]
[1728044103861,0.05343218,61541.0,61540.0,0.51613101]
[1728044104108,0.05243218,61541.0,61540.0,0.55952471]
[1728044104390,0.05243218,61541.0,61540.0,0.70520805]
[1728044104391,0.01949575,61541.0,61540.0,0.70520805]
[1728044104602,0.001638,61554.0,61553.0,0.162461]
[1728044105074,0.05004326,61554.0,61553.0,0.17957179]
[1728044105326,0.07551254,61554.0,61553.0,0.17957179]
[1728044105815,0.07551254,61554.0,61553.0,0.01711079]
[1728044106043,0.40987054,61554.0,61553.0,0.01711079]
[1728044106300,0.40987054,61554.0,61545.0,0.02033163]
[1728044106301,0.324923,61553.0,61545.0,0.02033163]
[1728044106510,0.162477,61547.0,61544.0,0.162484]
[1728044106741,0.04840526,61546.0,61544.0,0.162484]
[1728044106961,0.04840526,61545.0,61544.0,0.162485]
[1728044107396,0.04026418,61545.0,61544.0,0.162485]
[1728044107906,0.04026418,61545.0,61544.0,0.167485]
[1728044108424,0.03286232,61545.0,61544.0,0.173485]
[1728044108661,0.04831246,61545.0,61544.0,0.173485]
[1728044108900,0.04017037,61545.0,61544.0,0.167485]
[1728044109374,0.01545014,61545.0,61544.0,0.167485]
[1728044109586,0.04017037,61545.0,61544.0,0.167485]
[1728044109796,0.04017037,61545.0,61544.0,0.162485]
[1728044109797,0.01545014,61545.0,61544.0,0.162485]
[1728044110017,0.04831243,61545.0,61544.0,0.162485]
[1728044110276,0.04117037,61545.0,61544.0,0.168485]
[1728044110710,0.08587795,61545.0,61544.0,0.168485]
[1728044110932,0.04117037,61545.0,61544.0,0.168485]
[1728044111150,0.04217037,61545.0,61544.0,0.173485]
[1728044112351,0.04217037,61545.0,61544.0,0.18071774]
[1728044116798,0.04217037,61545.0,61544.0,0.34390445]
[1728044117039,0.04217037,61545.0,61544.0,0.53842841]
[1728044117259,0.01745014,61545.0,61544.0,0.55877162]
[1728044117526,0.01745014,61545.0,61544.0,0.56142841]
[1728044117750,0.01745014,61545.0,61544.0,0.5817751]
[1728044117751,0.002,61545.0,61544.0,0.5817751]
[1728044118003,0.01745517,61545.0,61544.0,0.5817751]
[1728044120733,0.01745517,61545.0,61544.0,0.58171979]
[1728044122564,0.002,61545.0,61544.0,0.58171979]
[1728044124657,0.002,61545.0,61544.0,0.40431979]
[1728044125872,0.01747931,61545.0,61544.0,0.40431979]
[1728044127313,0.002,61545.0,61544.0,0.40414593]
[1728044127561,0.01752778,61545.0,61544.0,0.38402841]
[1728044127802,0.01752778,61545.0,61544.0,0.40415026]
[1728044128035,0.03305881,61545.0,61544.0,0.40415026]
[1728044131131,0.03305881,61545.0,61544.0,0.58125026]
[1728044131369,0.03305881,61545.0,61544.0,0.61347863]
[1728044132095,0.03305881,61545.0,61544.0,0.63059535]
[1728044132342,0.03305881,61545.0,61544.0,0.73059535]
[1728044132590,0.03305881,61545.0,61544.0,0.77990888]
[1728044132835,0.002,61545.0,61544.0,0.83971809]
[1728044133081,0.002,61545.0,61544.0,0.86396536]
[1728044133351,0.001638,61554.0,61553.0,0.162461]
[1728044133589,0.001638,61554.0,61553.0,0.78322928]
[1728044133801,0.001638,61554.0,61553.0,0.83971501]
[1728044134290,0.001638,61554.0,61553.0,0.79126299]
[1728044134795,0.002638,61554.0,61553.0,0.80526299]
[1728044135264,0.003638,61554.0,61553.0,0.81926299]
[1728044138966,0.003638,61554.0,61553.0,0.82338299]
[1728044143123,0.003638,61554.0,61553.0,0.82538299]
[1728044143620,0.003638,61554.0,61553.0,0.77103277]
[1728044143849,0.003638,61554.0,61553.0,0.82329197]
[1728044145064,0.003638,61554.0,61553.0,0.82529197]
[1728044145513,0.003638,61554.0,61553.0,0.87370671]
[1728044145732,0.003638,61554.0,61553.0,0.9979005]
[1728044145959,0.003638,61554.0,61553.0,0.9959005]
[1728044146180,0.003638,61554.0,61553.0,0.97171614]
[1728044146630,0.003638,61554.0,61553.0,0.9959005]
[1728044146854,0.003638,61554.0,61553.0,0.99591757]
[1728044147070,0.003638,61554.0,61553.0,0.94365876]
[1728044147296,0.003638,61554.0,61553.0,0.99588778]
[1728044147569,0.003638,61554.0,61553.0,0.94565876]
[1728044147792,0.003638,61554.0,61553.0,0.99788681]
[1728044148681,0.003638,61554.0,61553.0,0.92526082]
[1728044150515,0.003638,61554.0,61553.0,1.02209495]
[1728044150749,0.003638,61554.0,61553.0,0.99789551]
[1728044150967,0.003638,61554.0,61553.0,1.07053711]
[1728044152743,0.003638,61554.0,61553.0,1.06853711]
[1728044153571,0.003638,61554.0,61553.0,1.00353454]
[1728044154653,0.003638,61554.0,61553.0,0.93089294]
[1728044154864,0.003638,61554.0,61553.0,1.00352731]
[1728044155097,0.003638,61554.0,61553.0,1.00552731]
[1728044155341,0.003638,61554.0,61553.0,1.02972707]
[1728044156497,0.003638,61554.0,61553.0,1.02772707]
[1728044157392,0.003638,61554.0,61553.0,0.93089294]
[1728044157631,0.003638,61554.0,61553.0,1.02774631]
[1728044158100,0.003638,61554.0,61553.0,0.96405768]
[1728044159025,0.003638,61554.0,61553.0,0.89141778]
[1728044159684,0.003638,61554.0,61553.0,0.89341778]
[1728044159900,0.003638,61554.0,61553.0,1.01455746]
[1728044160126,0.003638,61554.0,61553.0,1.01455672]
[1728044160739,0.003638,61554.0,61553.0,1.01478188]
[1728044161457,0.001638,61558.0,61557.0,0.466851]
[1728044161719,0.001638,61558.0,61557.0,0.90539626]
[1728044162155,0.001638,61558.0,61557.0,1.05069176]
[1728044162367,0.001638,61558.0,61557.0,0.92334164]
[1728044162578,0.001638,61558.0,61557.0,0.92834164]
[1728044163311,0.001638,61558.0,61557.0,0.92833332]
[1728044163524,0.001638,61558.0,61557.0,1.00715293]
[1728044163744,0.001638,61558.0,61557.0,0.86186575]
[1728044163946,0.002638,61558.0,61557.0,0.94794995]
[1728044164154,0.002638,61558.0,61557.0,0.96194995]
[1728044164375,0.002638,61558.0,61557.0,1.10723713]
[1728044164604,0.002638,61558.0,61557.0,0.96194995]
[1728044164824,0.002638,61558.0,61557.0,1.00378108]
[1728044165059,0.24343338,61570.0,61562.0,0.187437]
[1728044165272,0.24343338,61570.0,61562.0,0.83761293]
[1728044165741,0.24343338,61570.0,61569.0,0.162419]
[1728044165966,0.24343338,61570.0,61569.0,0.53733045]
[1728044166415,0.0965,61578.0,61577.0,0.185398]
[1728044166631,0.42443338,61583.0,61582.0,0.185385]
[1728044166853,0.42443338,61583.0,61582.0,0.34857171]
[1728044167272,0.181,61583.0,61582.0,0.34857171]
[1728044169019,0.181,61583.0,61582.0,0.35560393]
[1728044169282,0.181,61583.0,61582.0,0.00703222]
[1728044169733,0.324755,61585.0,61579.0,0.324784]
[1728044169734,0.162386,61582.0,61579.0,0.162392]
[1728044169966,0.324747,61587.0,61575.0,0.00421054]
[1728044170192,0.16238,61584.0,61581.0,0.162386]
[1728044170675,0.255281,61584.0,61581.0,0.162386]
[1728044170905,0.169,61583.0,61582.0,0.162385]
[1728044171136,0.0931,61582.0,61581.0,0.162387]
[1728044172540,0.0931,61582.0,61581.0,0.16942449]
[1728044173487,0.0931,61582.0,61581.0,0.17042449]
[1728044175709,0.255485,61582.0,61581.0,0.00803749]
[1728044175913,0.19395821,61582.0,61581.0,0.17042449]
[1728044176874,0.19395821,61582.0,61581.0,0.1872528]
[1728044177721,0.1685,61582.0,61581.0,0.1872528]
[1728044177957,0.1685,61582.0,61581.0,0.35043951]
[1728044178456,0.1732,61587.0,61586.0,0.162374]
[1728044178698,0.1732,61587.0,61586.0,0.18619119]
[1728044179158,0.1732,61587.0,61586.0,0.02381719]
[1728044179406,0.335571,61587.0,61586.0,0.02381719]
[1728044179664,0.335571,61587.0,61586.0,0.01780607]
[1728044179877,0.335571,61587.0,61586.0,0.001]
[1728044180578,0.335571,61587.0,61586.0,0.005]
[1728044180783,0.3610301,61587.0,61586.0,0.005]
[1728044181024,0.3610301,61587.0,61586.0,0.001]
[1728044181339,0.0254591,61587.0,61578.0,0.162394]
[1728044181557,0.1747,61581.0,61578.0,0.162394]
[1728044182913,0.1747,61581.0,61579.0,0.162392]
[1728044183397,0.1747,61581.0,61580.0,0.00704276]
[1728044183398,0.337087,61581.0,61580.0,0.00704276]
[1728044183639,0.162393,61579.0,61578.0,0.002]
[1728044183872,0.162393,61579.0,61578.0,0.00905331]
[1728044184103,0.162393,61579.0,61578.0,0.00705331]
[1728044184335,0.18785267,61579.0,61578.0,0.00705331]
[1728044184555,0.162397,61578.0,61575.0,0.162402]
[1728044184799,0.162395,61579.0,61575.0,0.162402]
[1728044185704,0.162395,61579.0,61576.0,0.1624]
[1728044185976,0.162395,61579.0,61578.0,0.004]
[1728044186201,0.162395,61579.0,61576.0,0.1624]
[1728044186431,0.0971,61580.0,61577.0,0.162397]
[1728044186660,0.259492,61580.0,61576.0,0.162398]
[1728044186892,0.162393,61579.0,61576.0,0.162398]
[1728044187123,0.162393,61579.0,61578.0,0.004]
[1728044187334,0.162393,61579.0,61576.0,0.162398]
[1728044187335,0.18785297,61579.0,61576.0,0.162398]
[1728044187796,0.18785297,61579.0,61577.0,0.003]
[1728044188471,0.18785297,61579.0,61578.0,0.162395]
[1728044188472,0.02545997,61579.0,61578.0,0.162395]
[1728044189179,0.02545997,61579.0,61578.0,0.166395]
[1728044189653,0.02545997,61579.0,61578.0,0.18661408]
[1728044189889,0.07396284,61579.0,61578.0,0.18661408]
[1728044190984,0.07396284,61579.0,61578.0,0.02421908]
[1728044191461,0.09021691,61579.0,61578.0,0.02521908]
[1728044191688,0.09021691,61579.0,61578.0,0.04206051]
[1728044195792,0.25260991,61579.0,61578.0,0.04206051]
[1728044195997,0.18785297,61579.0,61578.0,0.04204838]
[1728044196225,0.22825489,61579.0,61578.0,0.04204838]
[1728044196458,0.25265399,61579.0,61578.0,0.04204838]
[1728044196686,0.23639255,61579.0,61578.0,0.04204838]
[1728044198075,0.07399955,61579.0,61578.0,0.04204838]
[1728044199217,0.23639255,61579.0,61578.0,0.04204838]
[1728044199449,0.18785297,61579.0,61578.0,0.04204838]
[1728044199691,0.23641869,61579.0,61578.0,0.04200732]
[1728044200366,0.23641869,61579.0,61578.0,0.02184143]
[1728044202080,0.23641869,61579.0,61578.0,0.005]
[1728044202763,0.23641869,61579.0,61578.0,0.0219295]
[1728044202991,0.23641869,61579.0,61578.0,0.005]